bitfinex/quotes_BTCUSD_20240627
["timestamp","ask_amount","ask_price","bid_price","bid_amount"]
[1719517262748,0.636786,61655.0,61654.0,0.000924]
[1719517263115,0.80089336,61655.0,61654.0,0.000924]
[1719517263564,0.62253768,61655.0,61654.0,0.000924]
[1719517263702,0.74125936,61655.0,61654.0,0.000924]
[1719517264445,0.74273594,61655.0,61654.0,0.000924]
[1719517264824,0.74373594,61655.0,61654.0,0.006924]
[1719517265026,0.74473594,61655.0,61654.0,0.013924]
[1719517265227,0.580532,61655.0,61654.0,0.013924]
[1719517267169,0.579152,61655.0,61654.0,0.013924]
[1719517268171,0.580532,61655.0,61654.0,0.013924]
[1719517270341,0.65427946,61655.0,61654.0,0.013924]
[1719517270516,0.78387946,61655.0,61654.0,0.013924]
[1719517280293,0.78387946,61655.0,61654.0,0.0138628]
[1719517289040,0.89391109,61655.0,61654.0,0.0138628]
[1719517289261,0.00138,61645.0,61643.0,0.5]
[1719517289471,0.00138,61643.0,61642.0,0.000924]
[1719517289865,1.108499,61643.0,61642.0,0.000924]
[1719517290060,1.006054,61643.0,61642.0,0.000924]
[1719517290766,1.006054,61643.0,61642.0,0.005924]
[1719517291168,1.07980146,61643.0,61642.0,0.005924]
[1719517291408,0.00138,61637.0,61636.0,0.00924]
[1719517291781,0.09568,61637.0,61636.0,0.00924]
[1719517292014,1.829575,61637.0,61636.0,0.00924]
[1719517292245,0.26942746,61637.0,61636.0,0.00924]
[1719517292632,2.24536046,61637.0,61636.0,0.00924]
[1719517292913,0.27142746,61637.0,61636.0,0.00924]
[1719517293333,2.22637146,61637.0,61636.0,0.00924]
[1719517293563,2.22499146,61637.0,61636.0,0.00924]
[1719517293712,0.27004746,61637.0,61636.0,0.00924]
[1719517293892,1.44263546,61637.0,61636.0,0.00924]
[1719517294275,0.27142746,61637.0,61636.0,0.00924]
[1719517294469,1.34570546,61637.0,61636.0,0.00924]
[1719517294872,1.14252446,61637.0,61636.0,0.00924]
[1719517295051,0.52939291,61637.0,61636.0,0.40037898]
[1719517295252,0.27004746,61637.0,61636.0,0.40037898]
[1719517299153,0.102,61637.0,61636.0,0.40993498]
[1719517299395,0.002,61637.0,61636.0,0.40993498]
[1719517299595,0.102,61637.0,61636.0,0.40993498]
[1719517299970,0.002,61637.0,61636.0,0.40993498]
[1719517300415,0.001,61637.0,61636.0,0.40993498]
[1719517300644,0.002,61637.0,61636.0,0.40993498]
[1719517300810,0.001,61637.0,61636.0,0.40993498]
[1719517301012,0.0943,61639.0,61638.0,0.746756]
[1719517301230,0.0943,61639.0,61638.0,0.90909498]
[1719517301762,0.1,61644.0,61642.0,0.009556]
[1719517302094,0.07374746,61645.0,61642.0,0.009556]
[1719517302095,0.07374746,61645.0,61643.0,0.39173898]
[1719517302295,0.0943,61644.0,61643.0,0.39173898]
[1719517302503,0.1943,61644.0,61643.0,0.39173898]
[1719517303428,0.1943,61644.0,61643.0,0.40129498]
[1719517303665,0.0953,61644.0,61643.0,0.41029498]
[1719517304168,0.0963,61644.0,61643.0,0.41029498]
[1719517304781,0.002,61644.0,61643.0,0.93654752]
[1719517304925,0.002,61644.0,61643.0,1.10774752]
[1719517305120,0.0943,61662.0,61654.0,0.209556]
[1719517305328,0.0943,61662.0,61654.0,0.60489498]
[1719517306634,0.11374746,61665.0,61654.0,0.60489498]
[1719517306925,0.00184,61655.0,61654.0,0.40989498]
[1719517308077,0.00284,61655.0,61654.0,0.41889498]
[1719517308390,0.00279975,61655.0,61654.0,0.41889498]
[1719517320423,0.00279975,61655.0,61654.0,0.40933898]
[1719517321085,0.00279975,61655.0,61654.0,0.41026298]
[1719517322046,0.00279975,61655.0,61654.0,0.17726298]
[1719517322471,0.10387975,61655.0,61654.0,0.17726298]
[1719517322696,0.20387975,61655.0,61654.0,0.17726298]
[1719517322898,0.20249975,61655.0,61654.0,0.17726298]
[1719517323277,0.67687775,61655.0,61654.0,0.17226298]
[1719517323620,0.67787775,61655.0,61654.0,0.18326298]
[1719517323757,0.67825775,61655.0,61654.0,0.17226298]
[1719517323962,0.67725775,61655.0,61654.0,0.16326298]
[1719517324209,0.67825775,61655.0,61654.0,0.17426298]
[1719517324661,0.80365775,61655.0,61654.0,0.17426298]
[1719517325660,0.80365775,61655.0,61654.0,0.18126298]
[1719517325886,0.80465775,61655.0,61654.0,0.018924]
[1719517330490,0.87840521,61655.0,61654.0,0.018924]
[1719517330712,1.04217576,61655.0,61654.0,0.018924]
[1719517331059,0.87840521,61655.0,61654.0,0.01885839]
[1719517331461,0.88840521,61655.0,61654.0,0.01885839]
[1719517333274,1.16460099,61655.0,61654.0,0.01885839]
[1719517333471,1.05220047,61655.0,61654.0,0.01885839]
[1719517334788,1.05220047,61655.0,61654.0,0.01853139]
[1719517335159,0.88740521,61655.0,61654.0,0.01153139]
[1719517335490,0.89840521,61655.0,61654.0,0.01253139]
[1719517335828,0.89740521,61655.0,61654.0,0.00153139]
[1719517335985,0.89840521,61655.0,61654.0,0.00153139]
[1719517336391,0.90940521,61655.0,61654.0,0.00253139]
[1719517344596,0.07419146,61641.0,61640.0,0.0999]
[1719517344816,0.31072746,61641.0,61640.0,0.0999]
[1719517345062,1.42704446,61641.0,61640.0,0.0999]
[1719517345256,0.41072746,61641.0,61640.0,0.0999]
[1719517345453,1.42704746,61641.0,61640.0,0.0999]
[1719517345722,0.41072746,61641.0,61640.0,0.0999]
[1719517345924,0.41172746,61641.0,61640.0,0.1069]
[1719517346126,1.42804646,61641.0,61640.0,0.1069]
[1719517346284,0.41272746,61641.0,61640.0,0.1129]
[1719517347261,1.46967546,61641.0,61640.0,0.1129]
[1719517348605,1.23407546,61641.0,61640.0,0.1129]
[1719517348826,1.32837546,61641.0,61640.0,0.1129]
[1719517350466,1.32837546,61641.0,61640.0,0.013]
[1719517350684,1.32837546,61641.0,61635.0,0.240529]
[1719517350685,0.08512746,61637.0,61635.0,0.009229]
[1719517350884,0.08512746,61637.0,61626.0,0.009229]
[1719517350885,0.07512746,61627.0,61626.0,0.009229]
[1719517351178,0.16942746,61627.0,61626.0,0.009229]
[1719517351328,3.66088946,61627.0,61626.0,0.009229]
[1719517351703,3.67018203,61627.0,61626.0,0.009229]
[1719517351989,3.76448203,61627.0,61626.0,0.009229]
[1719517352201,3.92648001,61627.0,61626.0,0.009229]
[1719517352403,3.782643,61627.0,61626.0,0.009229]
[1719517352588,3.768771,61627.0,61626.0,0.009229]
[1719517352989,3.748771,61627.0,61626.0,0.009229]
[1719517353196,3.704134,61627.0,61626.0,0.010229]
[1719517353417,3.364569,61627.0,61626.0,0.009229]
[1719517353558,3.487169,61627.0,61626.0,0.009229]
[1719517353757,3.504169,61627.0,61626.0,0.010229]
[1719517354038,3.604169,61627.0,61626.0,0.010229]
[1719517354769,3.725869,61627.0,61626.0,0.010229]
[1719517355715,3.623269,61627.0,61626.0,0.010229]
[1719517359211,2.571899,61627.0,61626.0,0.010229]
[1719517359628,2.579899,61627.0,61626.0,0.010229]
[1719517360235,2.570899,61627.0,61626.0,0.009229]
[1719517360599,2.579899,61627.0,61626.0,0.010229]
[1719517360792,2.481031,61627.0,61626.0,0.010229]
[1719517362131,2.501031,61627.0,61626.0,0.010229]
[1719517363208,2.481031,61627.0,61626.0,0.010229]
[1719517363620,2.337191,61627.0,61626.0,0.010229]
[1719517363820,2.251002,61627.0,61626.0,0.010229]
[1719517366815,2.251002,61627.0,61626.0,0.01018894]
[1719517368240,2.271002,61627.0,61626.0,0.01018894]
[1719517368412,2.251002,61627.0,61626.0,0.01018894]
[1719517370324,0.02,61626.0,61625.0,0.000924]
[1719517370504,0.02,61626.0,61620.0,0.009229]
[1719517370505,0.02,61623.0,61620.0,0.009229]
[1719517370707,0.236,61621.0,61620.0,0.009229]
[1719517370909,0.336,61621.0,61620.0,0.009229]
[1719517371111,2.787282,61621.0,61620.0,0.009229]
[1719517371355,0.336,61621.0,61620.0,0.009229]
[1719517371773,2.787282,61621.0,61620.0,0.009229]
[1719517371971,2.254379,61621.0,61620.0,0.009229]
[1719517372144,2.230524,61621.0,61620.0,0.009229]
[1719517372344,2.255195,61621.0,61620.0,0.009229]
[1719517372690,2.204554,61621.0,61620.0,0.009229]
[1719517373096,2.154882,61621.0,61620.0,0.009229]
[1719517373304,1.761585,61621.0,61620.0,0.009229]
[1719517373508,1.70863,61621.0,61620.0,0.009229]
[1719517373930,0.92412,61621.0,61620.0,0.226909]
[1719517374140,0.868114,61621.0,61620.0,0.226909]
[1719517374352,0.867114,61621.0,61620.0,0.226909]
[1719517374760,0.734514,61621.0,61620.0,0.226909]
[1719517374988,0.725514,61621.0,61620.0,0.226909]
[1719517375455,0.726514,61621.0,61620.0,0.226909]
[1719517376739,0.868114,61621.0,61620.0,0.226909]
[1719517381936,0.5542177,61621.0,61620.0,0.226909]
[1719517382158,0.3182177,61621.0,61620.0,0.226909]
[1719517382362,0.237,61621.0,61620.0,0.38924798]
[1719517382564,0.001,61621.0,61620.0,0.38924798]
[1719517382771,0.001,61621.0,61620.0,0.40924798]
[1719517383999,0.001,61621.0,61620.0,0.60924798]
[1719517384225,0.1,61625.0,61623.0,0.2232]
[1719517384419,0.1,61625.0,61624.0,0.38553898]
[1719517385781,0.236,61628.0,61627.0,0.2239]
[1719517386020,0.336,61628.0,61627.0,0.38623898]
[1719517387549,0.338,61628.0,61627.0,0.38623898]
[1719517387793,0.34,61628.0,61627.0,0.38623898]
[1719517388247,0.104,61628.0,61627.0,0.38623898]
[1719517388453,0.004,61628.0,61627.0,0.88623898]
[1719517388657,0.104,61628.0,61627.0,0.88623898]
[1719517389584,0.004,61628.0,61627.0,0.88623898]
[1719517390219,0.004,61628.0,61627.0,0.90623898]
[1719517390626,0.002,61628.0,61627.0,0.90623898]
[1719517390828,0.003,61628.0,61627.0,0.90623898]
[1719517391261,0.001,61628.0,61627.0,0.90623898]
[1719517392337,0.002,61628.0,61627.0,0.91223898]
[1719517392555,0.002,61628.0,61627.0,0.89223898]
[1719517396732,0.0964,61628.0,61627.0,0.66833898]
[1719517397108,0.2931,61628.0,61627.0,0.16833898]
[1719517397306,0.3931,61628.0,61627.0,0.006]
[1719517398073,0.3921,61628.0,61627.0,0.006]
[1719517398532,0.3911,61628.0,61620.0,0.500309]
[1719517398662,0.16429286,61626.0,61621.0,0.16233898]
[1719517398892,0.2359,61622.0,61621.0,0.16233898]
[1719517399097,0.3359,61622.0,61621.0,0.16233898]
[1719517400059,0.770118,61622.0,61621.0,0.16533898]
[1719517401024,0.771118,61622.0,61621.0,0.16533898]
[1719517401495,0.771118,61622.0,61621.0,0.16233898]
[1719517401676,0.772118,61622.0,61621.0,0.16633898]
[1719517402010,0.66583,61622.0,61621.0,0.16633898]
[1719517402210,0.60083,61622.0,61621.0,0.16633898]
[1719517404377,0.536021,61622.0,61621.0,0.16633898]
[1719517404541,0.3379,61622.0,61621.0,0.40483898]
[1719517404749,0.102,61622.0,61621.0,0.35234244]
[1719517404948,0.102,61622.0,61621.0,0.40483898]
[1719517406217,0.002,61622.0,61621.0,0.40483898]
[1719517409919,0.002,61622.0,61621.0,0.42483898]
[1719517410299,0.002,61622.0,61621.0,0.40483898]
[1719517411953,0.002,61622.0,61621.0,0.42483898]
[1719517416331,0.002,61622.0,61621.0,0.62483898]
[1719517416618,0.002,61622.0,61621.0,0.82483898]
[1719517417694,0.002,61622.0,61621.0,0.82576298]
[1719517417892,0.00284,61622.0,61621.0,0.82576298]
[1719517418255,0.00184,61622.0,61621.0,0.84876298]
[1719517418478,0.00084,61622.0,61621.0,0.84476298]
[1719517418641,0.00184,61622.0,61621.0,0.84476298]
[1719517418848,0.00284,61622.0,61621.0,0.84976298]
[1719517422917,0.00284,61622.0,61621.0,1.04976298]
[1719517445393,0.00284,61622.0,61621.0,0.84976298]
[1719517448295,0.09922469,61631.0,61630.0,0.5]
[1719517448502,0.19352469,61631.0,61630.0,0.66233898]
[1719517449414,0.19352469,61631.0,61630.0,0.67133898]
[1719517449618,0.19452469,61631.0,61630.0,0.67133898]
[1719517449818,0.19552469,61631.0,61630.0,0.67833898]
[1719517450236,0.0963,61631.0,61630.0,0.67833898]
[1719517450451,0.0963,61631.0,61630.0,0.17833898]
[1719517450452,0.1963,61631.0,61630.0,0.17833898]
[1719517450731,0.267172,61631.0,61630.0,0.17833898]
[1719517450941,0.1963,61631.0,61630.0,0.17833898]
[1719517451293,0.773872,61631.0,61630.0,0.16933898]
[1719517451517,0.4344,61631.0,61630.0,0.16933898]
[1719517451718,0.772872,61631.0,61630.0,0.16426298]
[1719517451963,0.699572,61631.0,61630.0,0.16426298]
[1719517452151,0.43524,61631.0,61630.0,0.16426298]
[1719517452362,0.59965797,61631.0,61630.0,0.16426298]
[1719517452678,0.59865797,61631.0,61630.0,0.16426298]
[1719517452874,0.59865797,61631.0,61630.0,0.16626298]
[1719517453075,0.59865797,61631.0,61630.0,0.16526298]
[1719517453302,0.59865797,61631.0,61630.0,0.16626298]
[1719517453619,0.59865797,61631.0,61630.0,0.16926298]
[1719517453620,0.43424,61631.0,61630.0,0.16926298]
[1719517454626,0.59865797,61631.0,61630.0,0.16926298]
[1719517454823,0.43424,61631.0,61630.0,0.16926298]
[1719517464102,0.33994,61631.0,61630.0,0.16926298]
[1719517464330,0.19514,61631.0,61630.0,0.16926298]
[1719517464556,0.09514,61631.0,61630.0,0.16926298]
[1719517466503,0.33364,61631.0,61630.0,0.16926298]
[1719517466715,0.43364,61631.0,61630.0,0.16926298]
[1719517468012,0.43364,61631.0,61630.0,0.16626298]
[1719517468433,0.45764,61631.0,61630.0,0.000924]
[1719517468637,0.609183,61631.0,61630.0,0.000924]
[1719517468847,0.592183,61631.0,61630.0,0.000924]
[1719517469261,0.589183,61631.0,61630.0,0.000924]
[1719517469700,0.592183,61631.0,61630.0,0.000924]
[1719517470095,0.588183,61631.0,61630.0,0.000924]
[1719517470918,0.585183,61631.0,61630.0,0.000924]
[1719517471363,0.588183,61631.0,61630.0,0.000924]
[1719517471561,0.592183,61631.0,61630.0,0.000924]
[1719517480125,0.592183,61631.0,61630.0,0.000924]
[1719517483434,0.612183,61631.0,61630.0,0.000924]
[1719517483861,0.592183,61631.0,61630.0,0.000924]
[1719517484651,0.500583,61631.0,61630.0,0.000924]
[1719517484850,0.584883,61631.0,61630.0,0.000924]
[1719517485744,0.604883,61631.0,61630.0,0.000924]
[1719517490251,0.584883,61631.0,61630.0,0.000924]
[1719517498412,0.457983,61631.0,61630.0,0.000924]
[1719517498649,0.353683,61631.0,61630.0,0.000924]
[1719517499453,0.59373826,61631.0,61630.0,0.000924]
[1719517500375,0.353683,61631.0,61630.0,0.000924]
[1719517500552,0.373683,61631.0,61630.0,0.000924]
[1719517500754,0.353683,61631.0,61630.0,0.226524]
[1719517500967,0.259383,61631.0,61630.0,0.226524]
[1719517501171,0.20214,61631.0,61630.0,0.226524]
[1719517501578,0.659657,61631.0,61630.0,0.226524]
[1719517501924,0.19914,61631.0,61630.0,0.226524]
[1719517502127,0.659657,61631.0,61630.0,0.226524]
[1719517502527,0.452036,61631.0,61630.0,0.226524]
[1719517502743,0.449036,61631.0,61630.0,0.226524]
[1719517502872,0.453036,61631.0,61630.0,0.226524]
[1719517503072,0.449036,61631.0,61630.0,0.227524]
[1719517504492,0.449036,61631.0,61630.0,0.226524]
[1719517504694,0.449036,61631.0,61630.0,0.124124]
[1719517504921,0.449036,61631.0,61630.0,0.001924]
[1719517505343,0.449036,61631.0,61630.0,0.000924]
[1719517506296,0.449036,61631.0,61630.0,0.001924]
[1719517509821,0.277794,61631.0,61630.0,0.001924]
[1719517510027,0.277794,61631.0,61630.0,0.91606298]
[1719517510028,0.10084,61631.0,61630.0,0.91606298]
[1719517510245,0.26548687,61631.0,61630.0,0.91606298]
[1719517510451,0.10084,61631.0,61630.0,0.91606298]
[1719517511004,0.10084,61631.0,61630.0,0.91506298]
[1719517511208,0.10084,61631.0,61630.0,0.91606298]
[1719517511680,0.00084,61631.0,61630.0,0.91606298]
[1719517512023,0.00084,61631.0,61630.0,0.91506298]
[1719517512314,0.00184,61631.0,61630.0,0.92206298]
[1719517512686,0.00184,61631.0,61630.0,0.90206298]
[1719517512901,0.00284,61631.0,61630.0,0.91406298]
[1719517513620,0.00284,61631.0,61630.0,0.93406298]
[1719517515126,0.00284,61631.0,61630.0,0.93373613]
[1719517518847,0.00284,61631.0,61630.0,1.33373613]
[1719517519065,0.00284,61631.0,61630.0,1.45103613]
[1719517520021,0.00184,61631.0,61630.0,1.43903613]
[1719517520410,0.00184,61631.0,61630.0,1.43203613]
[1719517520411,0.00084,61631.0,61630.0,1.43203613]
[1719517520615,0.1,61650.0,61649.0,0.52]
[1719517520742,0.16516161,61655.0,61649.0,0.68233898]
[1719517520743,0.1,61654.0,61649.0,0.68233898]
[1719517520942,0.00079975,61655.0,61650.0,0.16233898]
[1719517520943,0.0943,61652.0,61650.0,0.16233898]
[1719517522403,0.00079975,61655.0,61650.0,0.16233898]
[1719517522581,0.0943,61651.0,61650.0,0.16233898]
[1719517524133,0.0943,61651.0,61650.0,0.17833898]
[1719517524629,0.0943,61651.0,61650.0,0.17033898]
[1719517525008,0.0953,61651.0,61650.0,0.18033898]
[1719517525217,0.0953,61651.0,61650.0,0.18001198]
[1719517525421,0.001,61651.0,61650.0,0.18001198]
[1719517526608,0.001,61651.0,61650.0,0.20001198]
[1719517527261,0.001,61651.0,61650.0,0.42251198]
[1719517527894,0.001,61651.0,61650.0,0.40251198]
[1719517531281,0.001,61651.0,61650.0,0.42251198]
[1719517531540,0.001,61651.0,61650.0,0.90381544]
[1719517531768,0.001,61651.0,61650.0,0.70381544]
[1719517532501,0.03964731,61671.0,61662.0,0.5]
[1719517532705,0.03964731,61671.0,61663.0,0.16233898]
[1719517532909,0.0943,61664.0,61663.0,0.16233898]
[1719517534426,0.0943,61664.0,61663.0,0.16333898]
[1719517534427,0.0983,61664.0,61663.0,0.16333898]
[1719517535008,0.1053,61664.0,61663.0,0.16433898]
[1719517535248,0.2013,61664.0,61663.0,0.16333898]
[1719517535532,0.1,61664.0,61663.0,0.16233898]
[1719517535683,0.1943,61664.0,61663.0,0.16233898]
[1719517535884,0.1973,61664.0,61663.0,0.16233898]
[1719517536095,0.1973,61664.0,61663.0,0.26673898]
[1719517536428,0.0973,61664.0,61663.0,0.26673898]
[1719517536637,0.1973,61664.0,61663.0,0.26673898]
[1719517537223,0.2013,61664.0,61663.0,0.26673898]
[1719517537550,0.107,61664.0,61663.0,0.28673898]
[1719517537855,0.007,61664.0,61663.0,0.41663898]
[1719517538005,0.104,61664.0,61663.0,0.41663898]
[1719517538409,0.1,61664.0,61663.0,0.41663898]
[1719517538823,0.1,61664.0,61663.0,0.43063898]
[1719517539207,0.0943,61670.0,61669.0,0.5]
[1719517539401,0.0943,61670.0,61669.0,0.66233898]
[1719517540666,0.0943,61670.0,61669.0,0.66933898]
[1719517542296,0.0953,61670.0,61669.0,0.67633898]
[1719517543661,0.0953,61670.0,61669.0,0.014]
[1719517543662,0.2182,61670.0,61669.0,0.014]
[1719517543863,0.3382,61670.0,61669.0,0.014]
[1719517544314,0.3182,61670.0,61669.0,0.014]
[1719517544518,0.2239,61670.0,61669.0,0.014]
[1719517544743,0.3182,61670.0,61669.0,0.014]
[1719517544950,0.2229,61670.0,61661.0,0.5]
[1719517545130,0.1,61669.0,61662.0,0.16233898]
[1719517545324,0.0943,61663.0,61662.0,0.16233898]
[1719517547818,0.0953,61663.0,61662.0,0.17233898]
[1719517548005,0.0953,61663.0,61662.0,0.18326298]
[1719517548006,0.0963,61663.0,61662.0,0.18326298]
[1719517548157,0.002,61663.0,61662.0,0.18326298]
[1719517548357,0.0953,61663.0,61662.0,0.17326298]
[1719517548904,0.0963,61663.0,61662.0,0.18326298]
[1719517554533,0.2061,61663.0,61662.0,0.18326298]
[1719517554742,0.3061,61663.0,61662.0,0.18326298]
[1719517558857,0.1963,61663.0,61662.0,0.020924]
[1719517559072,0.2261,61663.0,61662.0,0.02086374]
[1719517559265,0.3261,61663.0,61662.0,0.02086374]
[1719517559466,0.48986351,61663.0,61662.0,0.02086374]
[1719517559685,3.342337,61663.0,61662.0,0.02086374]
[1719517560239,3.602337,61663.0,61662.0,0.02086374]
[1719517560441,3.559164,61663.0,61662.0,0.02086374]
[1719517560644,3.558164,61663.0,61662.0,0.010924]
[1719517560817,3.298164,61663.0,61662.0,0.010924]
[1719517561048,3.297164,61663.0,61662.0,0.008924]
[1719517561195,3.144347,61663.0,61662.0,0.008924]
[1719517561400,3.124851,61663.0,61662.0,0.017924]
[1719517561802,3.104851,61663.0,61662.0,0.017924]
[1719517562013,2.560619,61663.0,61662.0,0.017924]
[1719517562241,2.516273,61663.0,61662.0,0.017924]
[1719517562643,1.371255,61663.0,61662.0,0.017924]
[1719517562817,1.371255,61663.0,61662.0,0.41386298]
[1719517562818,1.167155,61663.0,61662.0,0.41386298]
[1719517563022,0.1953,61663.0,61662.0,0.41386298]
[1719517563605,0.1953,61663.0,61662.0,0.017924]
[1719517564005,1.644865,61663.0,61662.0,0.017924]
[1719517564204,1.539262,61663.0,61662.0,0.017924]
[1719517564409,1.463836,61663.0,61662.0,0.017924]
[1719517564689,1.573636,61663.0,61662.0,0.017924]
[1719517565904,1.593636,61663.0,61662.0,0.017924]
[1719517566287,1.479336,61663.0,61662.0,0.017924]
[1719517566502,1.573636,61663.0,61662.0,0.017924]
[1719517566703,1.31802625,61663.0,61662.0,0.017924]
[1719517567208,1.29802625,61663.0,61662.0,0.017924]
[1719517569083,1.39802625,61663.0,61662.0,0.017924]
[1719517572382,1.41802625,61663.0,61662.0,0.017924]
[1719517572582,1.65757012,61663.0,61662.0,0.017924]
[1719517573414,1.65754756,61663.0,61662.0,0.017924]
[1719517573616,1.41802625,61663.0,61662.0,0.017924]
[1719517574008,1.11464411,61663.0,61662.0,0.017924]
[1719517574179,1.09464411,61663.0,61662.0,0.017924]
[1719517575549,1.11464411,61663.0,61662.0,0.017924]
[1719517580452,0.02,61650.0,61643.0,0.48782074]
[1719517580633,0.1168,61655.0,61643.0,0.48782074]
[1719517580634,0.0943,61644.0,61643.0,0.48782074]
[1719517580855,0.0943,61644.0,61642.0,0.1006]
[1719517581061,1.589228,61644.0,61642.0,0.1006]
[1719517581266,0.1,61643.0,61639.0,0.2293]
[1719517581507,0.1,61643.0,61640.0,0.16233898]
[1719517581720,0.0943,61641.0,61640.0,0.16233898]
[1719517582510,0.25841544,61641.0,61640.0,0.16233898]
[1719517582686,0.35841544,61641.0,61640.0,0.16233898]
[1719517583308,0.1943,61641.0,61640.0,0.16233898]
[1719517583513,0.1943,61641.0,61639.0,0.016]
[1719517583514,0.35838409,61641.0,61639.0,0.016]
[1719517583713,0.12,61640.0,61639.0,0.004]
[1719517583909,0.12,61640.0,61630.0,0.00059715]
[1719517583910,0.02,61635.0,61630.0,0.00059715]
[1719517584114,0.0943,61631.0,61630.0,0.16293613]
[1719517584659,0.1943,61631.0,61630.0,0.16293613]
[1719517584943,1.663266,61631.0,61630.0,0.16293613]
[1719517585098,0.1943,61631.0,61630.0,0.16293613]
[1719517585504,0.1943,61631.0,61630.0,0.00059715]
[1719517585505,1.90693003,61631.0,61630.0,0.00059715]
[1719517585890,1.72294,61631.0,61630.0,0.00359715]
[1719517586291,2.22687139,61631.0,61630.0,0.00359715]
[1719517586492,2.062939,61631.0,61630.0,0.00359715]
[1719517586692,0.3359,61631.0,61630.0,0.00359715]
[1719517586912,2.381749,61631.0,61630.0,0.01659715]
[1719517587139,0.3569,61631.0,61630.0,0.01659715]
[1719517587343,1.833687,61631.0,61630.0,0.00059715]
[1719517587514,1.248227,61631.0,61630.0,0.00059715]
[1719517587729,0.3409,61631.0,61630.0,0.16293613]
[1719517588092,0.3439,61631.0,61630.0,0.16293613]
[1719517588292,0.604184,61631.0,61630.0,0.16293613]
[1719517588704,0.607184,61631.0,61630.0,0.16293613]
[1719517588902,0.532884,61631.0,61630.0,0.16293613]
[1719517589465,0.529884,61631.0,61630.0,0.16293613]
[1719517590809,0.526884,61631.0,61630.0,0.16293613]
[1719517591226,0.526884,61631.0,61630.0,0.16493613]
[1719517591670,0.526884,61631.0,61630.0,0.16593613]
[1719517591848,0.526884,61631.0,61630.0,0.16293613]
[1719517592045,0.526884,61631.0,61630.0,0.16493613]
[1719517592308,0.526884,61631.0,61630.0,0.16593613]
[1719517592506,0.526884,61631.0,61630.0,0.16493613]
[1719517592682,0.526884,61631.0,61630.0,0.16293613]
[1719517593106,0.526884,61631.0,61630.0,0.00054596]
[1719517593434,0.546884,61631.0,61630.0,0.00054596]
[1719517593959,0.546884,61631.0,61630.0,0.00254596]
[1719517594407,0.546884,61631.0,61630.0,0.00054596]
[1719517594608,0.560884,61631.0,61630.0,0.00354596]
[1719517595012,0.546884,61631.0,61630.0,0.00054596]
[1719517595392,0.574884,61631.0,61630.0,0.00254596]
[1719517595590,0.560884,61631.0,61630.0,0.00154596]
[1719517595973,0.546884,61631.0,61630.0,0.00054596]
[1719517596183,0.560884,61631.0,61630.0,0.00154596]
[1719517596388,0.560884,61631.0,61621.0,0.000924]
[1719517596389,0.02,61622.0,61621.0,0.000924]
[1719517596590,0.3727,61622.0,61621.0,0.000924]
[1719517596794,0.4727,61622.0,61621.0,0.000924]
[1719517598484,4.621393,61622.0,61621.0,0.000924]
[1719517598696,4.626393,61622.0,61621.0,0.000924]
[1719517599097,4.499593,61622.0,61621.0,0.000924]
[1719517599253,2.134017,61622.0,61621.0,0.000924]
[1719517599604,2.112819,61622.0,61621.0,0.001924]
[1719517600712,2.118819,61622.0,61621.0,0.002924]
[1719517600889,2.098819,61622.0,61621.0,0.002924]
[1719517601093,1.631974,61622.0,61621.0,0.002924]
[1719517601295,1.645974,61622.0,61621.0,0.001924]
[1719517601699,1.650974,61622.0,61621.0,0.001924]
[1719517601904,1.415074,61622.0,61621.0,0.001924]
[1719517602223,1.7874814,61622.0,61621.0,0.001924]
[1719517602469,1.9102814,61622.0,61621.0,0.002924]
[1719517603056,1.768774,61622.0,61621.0,0.002924]
[1719517605131,1.651974,61622.0,61621.0,0.002924]
[1719517609157,1.65191697,61622.0,61621.0,0.002924]
[1719517611499,1.63191697,61622.0,61621.0,0.237324]
[1719517611682,1.28651997,61622.0,61621.0,0.237324]
[1719517613108,0.944677,61622.0,61621.0,0.237324]
[1719517613464,1.180577,61622.0,61621.0,0.237324]
[1719517615227,1.280577,61622.0,61621.0,0.237324]
[1719517616146,1.300577,61622.0,61621.0,0.002924]
[1719517617754,1.280577,61622.0,61621.0,0.002924]
[1719517617956,1.280577,61622.0,61621.0,0.234124]
[1719517618160,1.300577,61622.0,61621.0,0.002924]
[1719517618987,1.280577,61622.0,61621.0,0.002924]
[1719517621353,1.044677,61622.0,61621.0,0.234124]
[1719517621566,0.407558,61622.0,61621.0,0.234124]
[1719517623328,0.4939038,61622.0,61621.0,0.002924]
[1719517623549,0.427558,61622.0,61621.0,0.002924]
[1719517624910,0.559958,61622.0,61621.0,0.002924]
[1719517626667,0.02,61615.0,61612.0,0.00924]
[1719517626959,0.2559,61615.0,61612.0,0.00924]
[1719517627101,4.499593,61615.0,61612.0,0.00924]
[1719517628173,0.02,61613.0,61612.0,0.00924]
[1719517628908,2.952992,61613.0,61612.0,0.00924]
[1719517629084,3.052992,61613.0,61612.0,0.00924]
[1719517629496,3.061992,61613.0,61612.0,0.00924]
[1719517629839,3.070992,61613.0,61612.0,0.01024]
[1719517630913,3.061992,61613.0,61612.0,0.01024]
[1719517631265,3.071992,61613.0,61612.0,0.01124]
[1719517631466,3.024866,61613.0,61612.0,0.01024]
[1719517631904,3.032866,61613.0,61612.0,0.01024]
[1719517632347,2.992042,61613.0,61612.0,0.01024]
[1719517635631,2.811848,61613.0,61612.0,0.01024]
[1719517635807,0.729189,61613.0,61612.0,0.24554]
[1719517641071,0.749189,61613.0,61612.0,0.24554]
[1719517641908,0.729189,61613.0,61612.0,0.24554]
[1719517642087,0.749189,61613.0,61612.0,0.24554]
[1719517642244,0.749189,61613.0,61612.0,0.01024]
[1719517642447,0.749189,61613.0,61612.0,0.01017975]
[1719517645338,0.729189,61613.0,61612.0,0.01017975]
[1719517645767,0.749189,61613.0,61612.0,0.01017975]
[1719517645975,0.729189,61613.0,61612.0,0.01017975]
[1719517646175,0.749189,61613.0,61612.0,0.01017975]
[1719517647629,0.729189,61613.0,61612.0,0.01017975]